[Event "Titled Tuesday Blitz June 07 Late 2022"]
[White "Sadhwani, Raunak"]
[Black "Guz, Ari"]
[WhiteFideId "35093487"]
[BlackFideId "2825759"]
[WhiteElo "2616"]
[BlackElo "1913"]
[Result "1-0"]
[Round "04"]
[TimeControl "180+1"]
[Date "2022.06.07"]
[WhiteClock "0:02:41"]
[BlackClock "0:01:26"]

1. e4 {[%clk 0:03:00]}  c5 {[%clk 0:02:59]} 2. Nf3 {[%clk 0:03:01]}  e6 {[%clk 0:03:00]} 3. b3 {[%clk 0:03:00]}  b6 {[%clk 0:02:55]} 4. Bb2 {[%clk 0:03:00]}  Bb7 {[%clk 0:02:55]} 5. Nc3 {[%clk 0:02:59]}  Nf6 {[%clk 0:02:55]} 6. Qe2 {[%clk 0:03:00]}  d6 {[%clk 0:02:54]} 7. d4 {[%clk 0:02:57]}  cxd4 {[%clk 0:02:53]} 8. Nxd4 {[%clk 0:02:58]}  Nbd7 {[%clk 0:02:53]} 9. O-O-O {[%clk 0:02:58]}  a6 {[%clk 0:02:51]} 10. g4 {[%clk 0:02:59]}  h6 {[%clk 0:02:47]} 11. Bg2 {[%clk 0:02:58]}  Qc7 {[%clk 0:02:47]} 12. h4 {[%clk 0:02:55]}  g6 {[%clk 0:01:45]} 13. f4 {[%clk 0:02:52]}  Bg7 {[%clk 0:01:39]} 14. f5 {[%clk 0:02:49]}  gxf5 {[%clk 0:01:28]} 15. exf5 {[%clk 0:02:40]}  e5 {[%clk 0:01:27]} 16. Ndb5 {[%clk 0:02:40]}  axb5 {[%clk 0:01:26]} 17. Nxb5 {[%clk 0:02:41]} 1-0


[Site "https://www.chess.com"]

[Event "Titled Tuesday Blitz June 07 Late 2022"]
[White "Svane, Frederik"]
[Black "Dubov, Daniil"]
[WhiteFideId "12923044"]
[BlackFideId "24126055"]
[WhiteElo "2459"]
[BlackElo "2791"]
[Result "0-1"]
[Round "04"]
[TimeControl "180+1"]
[Date "2022.06.07"]
[WhiteClock "0:00:05"]
[BlackClock "0:00:43"]

1. e4 {[%clk 0:03:00]}  e5 {[%clk 0:02:59]} 2. Nf3 {[%clk 0:03:01]}  Nc6 {[%clk 0:02:59]} 3. Bb5 {[%clk 0:03:01]}  a6 {[%clk 0:02:59]} 4. Ba4 {[%clk 0:03:02]}  Nf6 {[%clk 0:03:00]} 5. O-O {[%clk 0:03:02]}  Be7 {[%clk 0:02:58]} 6. d3 {[%clk 0:03:03]}  b5 {[%clk 0:02:57]} 7. Bb3 {[%clk 0:03:03]}  O-O {[%clk 0:02:58]} 8. Nc3 {[%clk 0:03:03]}  Rb8 {[%clk 0:02:57]} 9. a3 {[%clk 0:02:59]}  d6 {[%clk 0:02:57]} 10. Be3 {[%clk 0:02:47]}  h6 {[%clk 0:02:56]} 11. h3 {[%clk 0:02:46]}  Re8 {[%clk 0:02:55]} 12. Re1 {[%clk 0:02:40]}  Bf8 {[%clk 0:02:55]} 13. a4 {[%clk 0:02:33]}  b4 {[%clk 0:02:51]} 14. Nd5 {[%clk 0:02:33]}  Nxd5 {[%clk 0:02:50]} 15. exd5 {[%clk 0:02:28]}  Ne7 {[%clk 0:02:46]} 16. c4 {[%clk 0:02:10]}  bxc3 {[%clk 0:02:44]} 17. bxc3 {[%clk 0:02:11]}  Ng6 {[%clk 0:02:37]} 18. a5 {[%clk 0:02:09]}  f5 {[%clk 0:02:36]} 19. Ba4 {[%clk 0:02:05]}  Bd7 {[%clk 0:02:32]} 20. Bc6 {[%clk 0:02:02]}  Ne7 {[%clk 0:02:14]} 21. Bxd7 {[%clk 0:01:52]}  Qxd7 {[%clk 0:02:13]} 22. c4 {[%clk 0:01:50]}  g5 {[%clk 0:01:58]} 23. Qc2 {[%clk 0:01:47]}  Bg7 {[%clk 0:01:57]} 24. Rab1 {[%clk 0:01:46]}  Bf6 {[%clk 0:01:54]} 25. Rxb8 {[%clk 0:01:43]}  Rxb8 {[%clk 0:01:54]} 26. Rb1 {[%clk 0:01:43]}  Qc8 {[%clk 0:01:27]} 27. Rb3 {[%clk 0:01:33]}  Kf7 {[%clk 0:01:24]} 28. Qb1 {[%clk 0:01:32]}  Rxb3 {[%clk 0:01:23]} 29. Qxb3 {[%clk 0:01:33]}  Kg6 {[%clk 0:01:14]} 30. c5 {[%clk 0:01:28]}  h5 {[%clk 0:00:57]} 31. c6 {[%clk 0:00:57]}  Qg8 {[%clk 0:00:53]} 32. Qb7 {[%clk 0:00:50]}  Qxd5 {[%clk 0:00:53]} 33. Qxa6 {[%clk 0:00:49]}  g4 {[%clk 0:00:51]} 34. hxg4 {[%clk 0:00:16]}  hxg4 {[%clk 0:00:52]} 35. Nd2 {[%clk 0:00:16]}  f4 {[%clk 0:00:50]} 36. Ba7 {[%clk 0:00:16]}  Qxc6 {[%clk 0:00:50]} 37. Qc4 {[%clk 0:00:04]}  Qxc4 {[%clk 0:00:49]} 38. Nxc4 {[%clk 0:00:05]}  Nc6 {[%clk 0:00:50]} 39. Bb6 {[%clk 0:00:05]}  cxb6 {[%clk 0:00:45]} 40. axb6 {[%clk 0:00:05]}  Bd8 {[%clk 0:00:43]} 0-1


[Site "https://www.chess.com"]

[Event "Titled Tuesday Blitz June 07 Late 2022"]
[White "Svane, Rasmus"]
[Black "Tica, Sven"]
[WhiteFideId "4657101"]
[BlackFideId "14526948"]
[WhiteElo "2674"]
[BlackElo "2346"]
[Result "1-0"]
[Round "04"]
[TimeControl "180+1"]
[Date "2022.06.07"]
[WhiteClock "0:00:47"]
[BlackClock "0:00:32"]

1. Nf3 {[%clk 0:03:00]}  g6 {[%clk 0:02:59]} 2. e4 {[%clk 0:03:00]}  Bg7 {[%clk 0:03:00]} 3. d4 {[%clk 0:03:01]}  a6 {[%clk 0:03:00]} 4. Bd3 {[%clk 0:03:01]}  b5 {[%clk 0:03:00]} 5. O-O {[%clk 0:03:02]}  Bb7 {[%clk 0:03:01]} 6. Re1 {[%clk 0:03:02]}  d6 {[%clk 0:03:01]} 7. Nbd2 {[%clk 0:03:01]}  Nd7 {[%clk 0:03:02]} 8. Nf1 {[%clk 0:03:01]}  c5 {[%clk 0:02:57]} 9. c3 {[%clk 0:03:01]}  c4 {[%clk 0:02:57]} 10. Bc2 {[%clk 0:03:01]}  e5 {[%clk 0:02:57]} 11. Ng3 {[%clk 0:03:00]}  Ne7 {[%clk 0:02:55]} 12. h4 {[%clk 0:03:00]}  O-O {[%clk 0:02:52]} 13. h5 {[%clk 0:02:59]}  Qc7 {[%clk 0:02:48]} 14. Bg5 {[%clk 0:02:52]}  f6 {[%clk 0:02:47]} 15. Be3 {[%clk 0:02:50]}  Rae8 {[%clk 0:02:38]} 16. a4 {[%clk 0:02:46]}  f5 {[%clk 0:02:34]} 17. dxe5 {[%clk 0:02:36]}  dxe5 {[%clk 0:02:31]} 18. Bg5 {[%clk 0:02:28]}  f4 {[%clk 0:02:26]} 19. Nf1 {[%clk 0:02:26]}  Nc5 {[%clk 0:02:26]} 20. h6 {[%clk 0:02:23]}  Bf6 {[%clk 0:02:24]} 21. a5 {[%clk 0:02:22]}  Rd8 {[%clk 0:02:21]} 22. Qe2 {[%clk 0:02:22]}  Nd3 {[%clk 0:02:17]} 23. Reb1 {[%clk 0:02:02]}  Qc6 {[%clk 0:02:00]} 24. N1h2 {[%clk 0:01:55]}  Bxg5 {[%clk 0:01:56]} 25. Nxg5 {[%clk 0:01:56]}  Qf6 {[%clk 0:01:56]} 26. Ngf3 {[%clk 0:01:22]}  Qe6 {[%clk 0:01:49]} 27. b3 {[%clk 0:01:18]}  Ba8 {[%clk 0:01:32]} 28. bxc4 {[%clk 0:01:18]}  bxc4 {[%clk 0:01:33]} 29. Rb6 {[%clk 0:01:15]}  Rd6 {[%clk 0:01:27]} 30. Bxd3 {[%clk 0:01:14]}  cxd3 {[%clk 0:01:27]} 31. Qxd3 {[%clk 0:01:13]}  Rfd8 {[%clk 0:01:12]} 32. Qxa6 {[%clk 0:01:09]}  Bxe4 {[%clk 0:01:12]} 33. Ng5 {[%clk 0:00:56]}  Rd1+ {[%clk 0:00:58]} 34. Rxd1 {[%clk 0:00:56]}  Rxd1+ {[%clk 0:00:59]} 35. Nf1 {[%clk 0:00:57]}  Rxf1+ {[%clk 0:00:32]} 36. Qxf1 {[%clk 0:00:47]} 1-0


[Site "https://www.chess.com"]

[Event "Titled Tuesday Blitz June 07 Late 2022"]
[White "Tanenbaum, Zachary"]
[Black "Tahbaz, Arash"]
[WhiteFideId "2060850"]
[BlackFideId "12528846"]
[WhiteElo "2175"]
[BlackElo "2389"]
[Result "1/2-1/2"]
[Round "04"]
[TimeControl "180+1"]
[Date "2022.06.07"]
[WhiteClock "0:00:07"]
[BlackClock "0:00:09"]

1. e4 {[%clk 0:03:00]}  c5 {[%clk 0:02:58]} 2. Nf3 {[%clk 0:03:00]}  g6 {[%clk 0:02:54]} 3. d4 {[%clk 0:03:01]}  cxd4 {[%clk 0:02:55]} 4. Nxd4 {[%clk 0:03:01]}  Nc6 {[%clk 0:02:56]} 5. Nc3 {[%clk 0:03:02]}  Bg7 {[%clk 0:02:56]} 6. Be3 {[%clk 0:03:02]}  Nf6 {[%clk 0:02:57]} 7. Bc4 {[%clk 0:03:03]}  d6 {[%clk 0:02:57]} 8. h3 {[%clk 0:02:58]}  Bd7 {[%clk 0:02:56]} 9. O-O {[%clk 0:02:54]}  O-O {[%clk 0:02:56]} 10. Bb3 {[%clk 0:02:53]}  Na5 {[%clk 0:02:54]} 11. f4 {[%clk 0:02:53]}  Qc7 {[%clk 0:02:41]} 12. f5 {[%clk 0:02:47]}  Nc4 {[%clk 0:02:32]} 13. Bxc4 {[%clk 0:02:34]}  Qxc4 {[%clk 0:02:32]} 14. Qd2 {[%clk 0:02:29]}  b5 {[%clk 0:02:31]} 15. a3 {[%clk 0:02:24]}  Rac8 {[%clk 0:02:29]} 16. Rad1 {[%clk 0:02:16]}  a5 {[%clk 0:02:29]} 17. Qd3 {[%clk 0:01:46]}  b4 {[%clk 0:02:24]} 18. axb4 {[%clk 0:01:44]}  axb4 {[%clk 0:02:25]} 19. Nce2 {[%clk 0:01:42]}  b3 {[%clk 0:01:33]} 20. Qxc4 {[%clk 0:01:25]}  Rxc4 {[%clk 0:01:34]} 21. cxb3 {[%clk 0:01:25]}  Rc7 {[%clk 0:01:34]} 22. Nc3 {[%clk 0:01:25]}  Rb7 {[%clk 0:01:33]} 23. Ra1 {[%clk 0:01:21]}  e5 {[%clk 0:01:24]} 24. fxe6 {[%clk 0:01:17]}  fxe6 {[%clk 0:01:14]} 25. Ra6 {[%clk 0:01:12]}  Ne8 {[%clk 0:01:08]} 26. Rxf8+ {[%clk 0:01:10]}  Kxf8 {[%clk 0:01:08]} 27. Ra5 {[%clk 0:00:41]}  Bxd4 {[%clk 0:01:07]} 28. Bxd4 {[%clk 0:00:41]}  e5 {[%clk 0:01:08]} 29. Be3 {[%clk 0:00:35]}  Rxb3 {[%clk 0:01:09]} 30. Bc1 {[%clk 0:00:30]}  Bc6 {[%clk 0:01:06]} 31. Ra7 {[%clk 0:00:24]}  Rb4 {[%clk 0:00:52]} 32. Rxh7 {[%clk 0:00:15]}  Bxe4 {[%clk 0:00:52]} 33. Rh4 {[%clk 0:00:14]}  d5 {[%clk 0:00:31]} 34. Nxd5 {[%clk 0:00:14]}  Rd4 {[%clk 0:00:29]} 35. Nc3 {[%clk 0:00:13]}  Bd3 {[%clk 0:00:23]} 36. Rh8+ {[%clk 0:00:10]}  Kf7 {[%clk 0:00:23]} 37. Be3 {[%clk 0:00:11]}  Rd7 {[%clk 0:00:17]} 38. Rh7+ {[%clk 0:00:10]}  Ke6 {[%clk 0:00:17]} 39. Rxd7 {[%clk 0:00:09]}  Kxd7 {[%clk 0:00:18]} 40. Kf2 {[%clk 0:00:08]}  Nd6 {[%clk 0:00:19]} 41. b3 {[%clk 0:00:06]}  Ke6 {[%clk 0:00:17]} 42. g4 {[%clk 0:00:06]}  Bc2 {[%clk 0:00:16]} 43. b4 {[%clk 0:00:06]}  Bd3 {[%clk 0:00:15]} 44. Bc5 {[%clk 0:00:05]}  Nb7 {[%clk 0:00:10]} 45. Ke3 {[%clk 0:00:04]}  Bc4 {[%clk 0:00:10]} 46. h4 {[%clk 0:00:04]}  Nd8 {[%clk 0:00:09]} 47. h5 {[%clk 0:00:04]}  gxh5 {[%clk 0:00:10]} 48. gxh5 {[%clk 0:00:04]}  Nf7 {[%clk 0:00:10]} 49. Ne4 {[%clk 0:00:04]}  Kf5 {[%clk 0:00:07]} 50. Nd6+ {[%clk 0:00:04]}  Nxd6 {[%clk 0:00:07]} 51. Bxd6 {[%clk 0:00:05]}  Kg5 {[%clk 0:00:08]} 52. Bxe5 {[%clk 0:00:05]}  Kxh5 {[%clk 0:00:08]} 53. Kd4 {[%clk 0:00:06]}  Bf1 {[%clk 0:00:08]} 54. Kc5 {[%clk 0:00:07]}  Kg6 {[%clk 0:00:08]} 55. b5 {[%clk 0:00:07]}  Bxb5 {[%clk 0:00:09]} 1/2-1/2


[Site "https://www.chess.com"]

[Event "Titled Tuesday Blitz June 07 Late 2022"]
[White "Uskov, Artem"]
[Black "Moussard, Jules"]
[WhiteFideId "34254854"]
[BlackFideId "642908"]
[WhiteElo "2335"]
[BlackElo "2589"]
[Result "0-1"]
[Round "04"]
[TimeControl "180+1"]
[Date "2022.06.07"]
[WhiteClock "0:02:05"]
[BlackClock "0:02:40"]

1. e4 {[%clk 0:02:54]}  e5 {[%clk 0:02:59]} 2. f4 {[%clk 0:02:54]}  d6 {[%clk 0:03:00]} 3. Nf3 {[%clk 0:02:54]}  Nc6 {[%clk 0:03:00]} 4. Bb5 {[%clk 0:02:54]}  Bd7 {[%clk 0:03:01]} 5. O-O {[%clk 0:02:54]}  Qe7 {[%clk 0:02:59]} 6. c3 {[%clk 0:02:52]}  a6 {[%clk 0:02:59]} 7. Ba4 {[%clk 0:02:52]}  exf4 {[%clk 0:02:58]} 8. d4 {[%clk 0:02:51]}  g5 {[%clk 0:02:58]} 9. d5 {[%clk 0:02:35]}  Ne5 {[%clk 0:02:58]} 10. Bxd7+ {[%clk 0:02:36]}  Nxd7 {[%clk 0:02:56]} 11. Nd4 {[%clk 0:02:35]}  Nh6 {[%clk 0:02:53]} 12. Nd2 {[%clk 0:02:33]}  Bg7 {[%clk 0:02:53]} 13. N2f3 {[%clk 0:02:33]}  O-O {[%clk 0:02:51]} 14. Nxg5 {[%clk 0:02:32]}  Qxg5 {[%clk 0:02:52]} 15. Bxf4 {[%clk 0:02:31]}  Qg6 {[%clk 0:02:52]} 16. Bxh6 {[%clk 0:02:31]}  Bxd4+ {[%clk 0:02:51]} 17. Qxd4 {[%clk 0:02:29]}  Qxh6 {[%clk 0:02:52]} 18. Rf3 {[%clk 0:02:17]}  Ne5 {[%clk 0:02:52]} 19. Rg3+ {[%clk 0:02:16]}  Kh8 {[%clk 0:02:52]} 20. Rf1 {[%clk 0:02:17]}  Rg8 {[%clk 0:02:50]} 21. Qf2 {[%clk 0:02:11]}  Rxg3 {[%clk 0:02:48]} 22. hxg3 {[%clk 0:02:11]}  Ng4 {[%clk 0:02:45]} 23. Qd4+ {[%clk 0:02:11]}  f6 {[%clk 0:02:46]} 24. Rf4 {[%clk 0:02:03]}  Rg8 {[%clk 0:02:46]} 25. Kf1 {[%clk 0:02:04]}  Qh1+ {[%clk 0:02:44]} 26. Ke2 {[%clk 0:02:04]}  Qxg2+ {[%clk 0:02:44]} 27. Kd1 {[%clk 0:02:04]}  Qxg3 {[%clk 0:02:41]} 28. Rxf6 {[%clk 0:02:05]}  Nxf6 {[%clk 0:02:39]} 29. Qxf6+ {[%clk 0:02:05]}  Qg7 {[%clk 0:02:40]} 0-1


[Site "https://www.chess.com"]

[Event "Titled Tuesday Blitz June 07 Late 2022"]
[White "Vasquez Schroeder, Rodrigo"]
[Black "Nazaretyan, Tigran"]
[WhiteFideId "3400042"]
[BlackFideId "24162345"]
[WhiteElo "2567"]
[BlackElo "2179"]
[Result "1-0"]
[Round "04"]
[TimeControl "180+1"]
[Date "2022.06.07"]
[WhiteClock "0:00:35"]
[BlackClock "0:00:08"]

1. e4 {[%clk 0:03:00]}  c5 {[%clk 0:02:58]} 2. Nf3 {[%clk 0:03:00]}  d6 {[%clk 0:02:58]} 3. d4 {[%clk 0:03:00]}  cxd4 {[%clk 0:02:58]} 4. Nxd4 {[%clk 0:03:01]}  Nf6 {[%clk 0:02:58]} 5. Nc3 {[%clk 0:03:02]}  Nc6 {[%clk 0:02:58]} 6. Bg5 {[%clk 0:03:02]}  e6 {[%clk 0:02:58]} 7. Qd2 {[%clk 0:03:02]}  a6 {[%clk 0:02:56]} 8. O-O-O {[%clk 0:03:02]}  Bd7 {[%clk 0:02:56]} 9. f3 {[%clk 0:03:02]}  b5 {[%clk 0:02:54]} 10. Nxc6 {[%clk 0:03:00]}  Bxc6 {[%clk 0:02:52]} 11. Ne2 {[%clk 0:03:01]}  Be7 {[%clk 0:02:50]} 12. h4 {[%clk 0:02:59]}  h6 {[%clk 0:02:43]} 13. Be3 {[%clk 0:02:59]}  h5 {[%clk 0:02:43]} 14. Nd4 {[%clk 0:02:54]}  Bb7 {[%clk 0:02:41]} 15. Bg5 {[%clk 0:02:52]}  Rc8 {[%clk 0:02:37]} 16. Bd3 {[%clk 0:02:49]}  Qb6 {[%clk 0:02:31]} 17. Kb1 {[%clk 0:02:46]}  O-O {[%clk 0:02:28]} 18. Be3 {[%clk 0:02:44]}  Qc7 {[%clk 0:02:24]} 19. Bg5 {[%clk 0:02:37]}  Qb6 {[%clk 0:02:24]} 20. Be2 {[%clk 0:02:36]}  b4 {[%clk 0:02:13]} 21. Rc1 {[%clk 0:02:22]}  a5 {[%clk 0:02:11]} 22. Rhd1 {[%clk 0:02:18]}  Rfd8 {[%clk 0:02:07]} 23. Be3 {[%clk 0:02:15]}  Qc7 {[%clk 0:02:02]} 24. Nb5 {[%clk 0:02:12]}  Qd7 {[%clk 0:01:54]} 25. Bb6 {[%clk 0:02:11]}  d5 {[%clk 0:01:36]} 26. e5 {[%clk 0:02:05]}  Ne8 {[%clk 0:01:36]} 27. Bxa5 {[%clk 0:02:02]}  Bxh4 {[%clk 0:01:31]} 28. Bxd8 {[%clk 0:01:55]}  Bxd8 {[%clk 0:01:28]} 29. Qxb4 {[%clk 0:01:53]}  Ba6 {[%clk 0:01:28]} 30. a4 {[%clk 0:01:52]}  h4 {[%clk 0:01:11]} 31. f4 {[%clk 0:01:51]}  Nc7 {[%clk 0:01:09]} 32. c4 {[%clk 0:01:46]}  Qe8 {[%clk 0:00:59]} 33. Nd6 {[%clk 0:01:44]}  Qf8 {[%clk 0:00:59]} 34. Qd2 {[%clk 0:01:30]}  Rb8 {[%clk 0:00:54]} 35. c5 {[%clk 0:01:27]}  Be7 {[%clk 0:00:46]} 36. Ka2 {[%clk 0:01:16]}  d4 {[%clk 0:00:44]} 37. Bf3 {[%clk 0:01:09]}  d3 {[%clk 0:00:42]} 38. b4 {[%clk 0:01:07]}  f6 {[%clk 0:00:28]} 39. Qc3 {[%clk 0:01:01]}  fxe5 {[%clk 0:00:28]} 40. fxe5 {[%clk 0:01:00]}  Qf4 {[%clk 0:00:27]} 41. Rb1 {[%clk 0:00:52]}  Nd5 {[%clk 0:00:17]} 42. Bxd5 {[%clk 0:00:51]}  exd5 {[%clk 0:00:18]} 43. Ka3 {[%clk 0:00:50]}  d4 {[%clk 0:00:16]} 44. Qb3+ {[%clk 0:00:49]}  Kh7 {[%clk 0:00:16]} 45. b5 {[%clk 0:00:49]}  Qxe5 {[%clk 0:00:15]} 46. Qxd3+ {[%clk 0:00:49]}  Kg8 {[%clk 0:00:14]} 47. Qc4+ {[%clk 0:00:44]}  Kh7 {[%clk 0:00:13]} 48. bxa6 {[%clk 0:00:43]}  Bxd6 {[%clk 0:00:13]} 49. cxd6 {[%clk 0:00:43]}  Qxd6+ {[%clk 0:00:13]} 50. Ka2 {[%clk 0:00:43]}  Ra8 {[%clk 0:00:09]} 51. Rxd4 {[%clk 0:00:38]}  Qxa6 {[%clk 0:00:08]} 52. Rxh4+ {[%clk 0:00:38]}  Kg6 {[%clk 0:00:09]} 53. Rg4+ {[%clk 0:00:36]}  Kf5 {[%clk 0:00:09]} 54. Rf1+ {[%clk 0:00:36]}  Ke5 {[%clk 0:00:10]} 55. Rg5+ {[%clk 0:00:36]}  Kd6 {[%clk 0:00:09]} 56. Rg6+ {[%clk 0:00:36]}  Ke7 {[%clk 0:00:09]} 57. Rf7+ {[%clk 0:00:36]}  Ke8 {[%clk 0:00:08]} 58. Rxa6 {[%clk 0:00:36]}  Rxa6 {[%clk 0:00:09]} 59. Rxg7 {[%clk 0:00:35]}  Rxa4+ {[%clk 0:00:08]} 60. Qxa4+ {[%clk 0:00:35]} 1-0


[Site "https://www.chess.com"]

[Event "Titled Tuesday Blitz June 07 Late 2022"]
[White "Yuan, Qingyu"]
[Black "Martinez Alcantara, Jose Eduardo"]
[WhiteFideId "8609772"]
[BlackFideId "3805662"]
[WhiteElo "2359"]
[BlackElo "2703"]
[Result "0-1"]
[Round "04"]
[TimeControl "180+1"]
[Date "2022.06.07"]
[WhiteClock "0:00:04"]
[BlackClock "0:00:07"]

1. e4 {[%clk 0:03:00]}  c5 {[%clk 0:02:57]} 2. Nf3 {[%clk 0:03:00]}  d6 {[%clk 0:02:58]} 3. Bb5+ {[%clk 0:03:00]}  Nd7 {[%clk 0:02:58]} 4. c4 {[%clk 0:03:01]}  Nf6 {[%clk 0:02:56]} 5. Nc3 {[%clk 0:03:01]}  e6 {[%clk 0:02:57]} 6. O-O {[%clk 0:02:59]}  Be7 {[%clk 0:02:57]} 7. d4 {[%clk 0:02:55]}  cxd4 {[%clk 0:02:57]} 8. Nxd4 {[%clk 0:02:56]}  O-O {[%clk 0:02:57]} 9. Ba4 {[%clk 0:02:54]}  Nb6 {[%clk 0:02:56]} 10. Bb3 {[%clk 0:02:53]}  a6 {[%clk 0:02:51]} 11. Qe2 {[%clk 0:02:49]}  Bd7 {[%clk 0:02:50]} 12. Rd1 {[%clk 0:02:37]}  Rc8 {[%clk 0:02:49]} 13. Nc2 {[%clk 0:02:38]}  Qc7 {[%clk 0:02:43]} 14. Ne3 {[%clk 0:02:38]}  Bc6 {[%clk 0:02:42]} 15. Bc2 {[%clk 0:02:28]}  Nbd7 {[%clk 0:02:42]} 16. b4 {[%clk 0:02:16]}  b6 {[%clk 0:02:41]} 17. Bb2 {[%clk 0:02:15]}  Bb7 {[%clk 0:02:40]} 18. f3 {[%clk 0:02:07]}  Rfe8 {[%clk 0:02:38]} 19. Rac1 {[%clk 0:02:07]}  Qb8 {[%clk 0:02:38]} 20. Ba4 {[%clk 0:02:01]}  Red8 {[%clk 0:02:35]} 21. a3 {[%clk 0:01:57]}  Ne5 {[%clk 0:02:33]} 22. Bb3 {[%clk 0:01:56]}  Ned7 {[%clk 0:02:22]} 23. Rc2 {[%clk 0:01:53]}  Bc6 {[%clk 0:02:13]} 24. Rcd2 {[%clk 0:01:43]}  h6 {[%clk 0:02:06]} 25. Kh1 {[%clk 0:01:43]}  Qc7 {[%clk 0:01:59]} 26. Qf1 {[%clk 0:01:36]}  Qa7 {[%clk 0:01:56]} 27. Ne2 {[%clk 0:01:33]}  Qb8 {[%clk 0:01:33]} 28. Nd4 {[%clk 0:01:32]}  Bb7 {[%clk 0:01:34]} 29. Qe1 {[%clk 0:01:28]}  Bf8 {[%clk 0:01:34]} 30. Qg3 {[%clk 0:01:27]}  Ne5 {[%clk 0:01:20]} 31. c5 {[%clk 0:01:09]}  bxc5 {[%clk 0:01:10]} 32. bxc5 {[%clk 0:00:53]}  Rxc5 {[%clk 0:00:24]} 33. Bxe6 {[%clk 0:00:53]}  Nh5 {[%clk 0:00:15]} 34. Qh4 {[%clk 0:00:48]}  Ng6 {[%clk 0:00:15]} 35. Qg4 {[%clk 0:00:43]}  Nhf4 {[%clk 0:00:10]} 36. Bf5 {[%clk 0:00:28]}  h5 {[%clk 0:00:06]} 37. Qg3 {[%clk 0:00:26]}  Be7 {[%clk 0:00:07]} 38. Bxg6 {[%clk 0:00:22]}  Nxg6 {[%clk 0:00:08]} 39. Ndf5 {[%clk 0:00:19]}  Bf8 {[%clk 0:00:08]} 40. h3 {[%clk 0:00:16]}  Bc6 {[%clk 0:00:07]} 41. Bd4 {[%clk 0:00:16]}  Rb5 {[%clk 0:00:06]} 42. Bc3 {[%clk 0:00:14]}  Rb1 {[%clk 0:00:05]} 43. Bb4 {[%clk 0:00:14]}  Rxd1+ {[%clk 0:00:05]} 44. Rxd1 {[%clk 0:00:15]}  Ba4 {[%clk 0:00:04]} 45. Rd2 {[%clk 0:00:14]}  d5 {[%clk 0:00:03]} 46. Qxb8 {[%clk 0:00:14]}  Rxb8 {[%clk 0:00:03]} 47. Nxd5 {[%clk 0:00:14]}  Bxb4 {[%clk 0:00:03]} 48. axb4 {[%clk 0:00:14]}  Kh7 {[%clk 0:00:03]} 49. Ra2 {[%clk 0:00:13]}  Bb3 {[%clk 0:00:03]} 50. Rxa6 {[%clk 0:00:11]}  Bxd5 {[%clk 0:00:04]} 51. exd5 {[%clk 0:00:11]}  Rxb4 {[%clk 0:00:05]} 52. Ra7 {[%clk 0:00:08]}  Rb1+ {[%clk 0:00:04]} 53. Kh2 {[%clk 0:00:09]}  Kg8 {[%clk 0:00:03]} 54. Ra8+ {[%clk 0:00:07]}  Kh7 {[%clk 0:00:03]} 55. Ra7 {[%clk 0:00:07]}  Kg8 {[%clk 0:00:03]} 56. d6 {[%clk 0:00:07]}  Rd1 {[%clk 0:00:03]} 57. d7 {[%clk 0:00:06]}  Nf8 {[%clk 0:00:04]} 58. Ne7+ {[%clk 0:00:05]}  Kh7 {[%clk 0:00:04]} 59. Nf5 {[%clk 0:00:05]}  Nxd7 {[%clk 0:00:03]} 60. Ne3 {[%clk 0:00:04]}  Rd3 {[%clk 0:00:03]} 61. Nc4 {[%clk 0:00:04]}  Rd4 {[%clk 0:00:04]} 62. Ne3 {[%clk 0:00:04]}  g6 {[%clk 0:00:04]} 63. Nf1 {[%clk 0:00:03]}  Kg7 {[%clk 0:00:05]} 64. Ng3 {[%clk 0:00:04]}  Nf6 {[%clk 0:00:05]} 65. Ra5 {[%clk 0:00:04]}  Rd2 {[%clk 0:00:05]} 66. Ne4 {[%clk 0:00:04]}  Nxe4 {[%clk 0:00:04]} 67. fxe4 {[%clk 0:00:05]}  Re2 {[%clk 0:00:04]} 68. Ra4 {[%clk 0:00:05]}  Kf6 {[%clk 0:00:05]} 69. Kg3 {[%clk 0:00:06]}  Rb2 {[%clk 0:00:03]} 70. Kf3 {[%clk 0:00:06]}  Rb3+ {[%clk 0:00:04]} 71. Kf2 {[%clk 0:00:06]}  Kg5 {[%clk 0:00:04]} 72. g3 {[%clk 0:00:06]}  h4 {[%clk 0:00:03]} 73. Ra5+ {[%clk 0:00:04]}  Kh6 {[%clk 0:00:04]} 74. gxh4 {[%clk 0:00:05]}  Rxh3 {[%clk 0:00:04]} 75. Ra7 {[%clk 0:00:04]}  Kg7 {[%clk 0:00:05]} 76. Kg2 {[%clk 0:00:04]}  Rxh4 {[%clk 0:00:05]} 77. Kf3 {[%clk 0:00:04]}  Rh3+ {[%clk 0:00:06]} 78. Kg4 {[%clk 0:00:05]}  Rh1 {[%clk 0:00:06]} 79. Kf4 {[%clk 0:00:05]}  Rf1+ {[%clk 0:00:07]} 80. Ke3 {[%clk 0:00:05]}  Rb1 {[%clk 0:00:07]} 81. Kf4 {[%clk 0:00:06]}  Rb4 {[%clk 0:00:07]} 82. Kf3 {[%clk 0:00:06]}  Rc4 {[%clk 0:00:07]} 83. Ke3 {[%clk 0:00:06]}  Rc6 {[%clk 0:00:07]} 84. Kf3 {[%clk 0:00:06]}  Kf6 {[%clk 0:00:07]} 85. Kf4 {[%clk 0:00:06]}  g5+ {[%clk 0:00:08]} 86. Kf3 {[%clk 0:00:07]}  Kg6 {[%clk 0:00:07]} 87. Ra5 {[%clk 0:00:07]}  Rf6+ {[%clk 0:00:08]} 88. Kg3 {[%clk 0:00:05]}  Re6 {[%clk 0:00:06]} 89. Kf3 {[%clk 0:00:05]}  Rf6+ {[%clk 0:00:07]} 90. Kg3 {[%clk 0:00:05]}  Rf4 {[%clk 0:00:08]} 91. Re5 {[%clk 0:00:05]}  f6 {[%clk 0:00:06]} 92. Re8 {[%clk 0:00:05]}  Kf7 {[%clk 0:00:07]} 93. Ra8 {[%clk 0:00:03]}  Rxe4 {[%clk 0:00:07]} 94. Ra6 {[%clk 0:00:03]}  Rf4 {[%clk 0:00:07]} 95. Ra4 {[%clk 0:00:04]}  Rxa4 {[%clk 0:00:07]} 0-1


[Site "https://www.chess.com"]